bitfinex/quotes_ETHUSD_20230109
["timestamp","ask_amount","ask_price","bid_price","bid_amount"]
[1673280180930,11.47526695,1340.5,1340.2,22.98891]
[1673280181136,1.774,1340.4,1340.2,0.066]
[1673280181490,1.774,1340.4,1340.0,20.286]
[1673280181491,10.68762,1340.3,1340.0,20.286]
[1673280181646,0.066,1340.3,1340.0,0.6259]
[1673280181856,8.0202,1340.4,1340.1,7.46212]
[1673280182066,19.04697,1340.4,1340.1,7.52812]
[1673280182361,11.5862,1340.4,1340.1,7.52812]
[1673280182490,11.5862,1340.4,1340.1,0.066]
[1673280182491,1.15862,1340.3,1340.1,0.066]
[1673280182702,1.15862,1340.3,1340.0,14.92475]
[1673280182703,1.15862,1340.3,1340.0,22.45323]
[1673280182912,28.73367907,1340.4,1340.0,14.99075]
[1673280183235,2.85160907,1340.4,1340.0,22.45343]
[1673280183469,5.84260907,1340.4,1340.0,22.45343]
[1673280183652,5.90860907,1340.4,1340.0,22.45343]
[1673280183861,13.36912907,1340.4,1340.0,22.45343]
[1673280184084,5.90860907,1340.4,1340.0,22.45343]
[1673280184317,3.6827,1340.4,1340.0,22.45343]
[1673280184522,3.6167,1340.4,1340.0,22.45343]
[1673280184946,0.5597,1340.4,1340.0,22.45343]
[1673280185161,4.0597,1340.4,1340.0,22.45343]
[1673280185340,13.74622907,1340.4,1340.0,22.45343]
[1673280185549,24.34184907,1340.4,1340.0,22.45343]
[1673280185756,28.13385805,1340.4,1340.0,22.45343]
[1673280185983,1.76214088,1340.3,1340.0,0.066]
[1673280186173,1.76214088,1340.3,1339.9,61.69484287]
[1673280186403,14.9233,1340.2,1339.9,61.69484287]
[1673280186608,14.9893,1340.2,1339.9,75.69484287]
[1673280186824,22.45098,1340.2,1339.9,49.19474287]
[1673280187464,22.45098,1340.2,1339.9,63.19474287]
[1673280187644,14.9893,1340.2,1339.9,56.65792287]
[1673280188112,14.9893,1340.2,1339.9,49.19474287]
[1673280188274,14.9893,1340.2,1339.9,63.19474287]
[1673280188483,7.52762,1340.2,1339.9,78.12099287]
[1673280188723,0.066,1340.2,1339.9,101.82160189]
[1673280188956,0.5597,1340.4,1339.9,101.82160189]
[1673280189126,0.5597,1340.4,1340.0,3.79766064]
[1673280189127,8.02016,1340.4,1340.0,3.79766064]
[1673280189480,8.02016,1340.4,1340.0,26.18545064]
[1673280189481,15.54662,1340.4,1340.0,26.18545064]
[1673280189790,8.08616,1340.4,1340.0,26.25145064]
[1673280189945,0.6257,1340.4,1340.0,26.25145064]
[1673280190160,0.5597,1340.4,1340.0,26.25145064]
[1673280190370,8.02017,1340.4,1340.0,26.25145064]
[1673280190624,8.08617,1340.4,1340.0,26.25145064]
[1673280190801,0.6257,1340.4,1340.0,26.25145064]
[1673280191017,0.5597,1340.4,1340.0,26.25145064]
[1673280191673,8.02017,1340.4,1340.1,3.79766064]
[1673280191901,8.02017,1340.4,1340.2,22.38438]
[1673280191902,0.066,1340.4,1340.2,22.38438]
[1673280192080,17.32358518,1340.6,1340.2,22.45038]
[1673280192286,35.8910987,1340.6,1340.2,22.45038]
[1673280192500,40.56452347,1340.6,1340.2,14.98874]
[1673280192766,42.32552347,1340.6,1340.2,14.98674]
[1673280192926,42.32552347,1340.6,1340.2,14.98874]
[1673280192927,3.5,1340.5,1340.2,14.98874]
[1673280193134,3.5,1340.5,1340.2,22.45031]
[1673280193655,33.10496347,1340.6,1340.2,22.45031]
[1673280193656,18.18591347,1340.6,1340.2,22.45031]
[1673280193867,1.81859135,1340.5,1340.2,22.45031]
[1673280194078,5.31859135,1340.5,1340.2,22.45031]
[1673280194338,0.066,1340.5,1340.2,22.45031]
[1673280194650,14.68591347,1340.6,1340.2,22.45031]
[1673280194898,18.18591347,1340.6,1340.2,22.45031]
[1673280195599,22.14527347,1340.6,1340.2,22.45031]
[1673280195788,14.68591347,1340.6,1340.2,22.45031]
[1673280196520,14.68591347,1340.6,1340.3,17.79766064]
[1673280196521,2.29190907,1340.6,1340.3,17.79766064]
[1673280196842,3.34767611,1340.7,1340.4,33.86946064]
[1673280196843,0.066,1340.7,1340.4,33.86946064]
[1673280197021,1.01759849,1340.8,1340.4,26.47501064]
[1673280197391,3.24350756,1340.8,1340.4,26.47501064]
[1673280197696,3.24350756,1340.8,1340.4,26.47210814]
[1673280197913,3.24350756,1340.8,1340.5,3.79766064]
[1673280198123,1.01759849,1340.8,1340.7,36.37637]
[1673280198312,1.01759849,1340.8,1340.7,0.066]
[1673280198525,1.01759849,1340.8,1340.5,30.08507]
[1673280198699,1.01759849,1340.8,1340.5,22.6257]
[1673280199123,1.11935834,1340.8,1340.5,14.6257]
[1673280199334,10.80358741,1340.8,1340.5,14.066]
[1673280199591,10.80358741,1340.8,1340.5,0.066]
[1673280199592,22.89398352,1340.8,1340.5,0.066]
[1673280199909,21.05343064,1340.7,1340.4,0.04113052]
[1673280200100,3.50214088,1340.6,1340.4,0.04113052]
[1673280200292,9.2379,1340.5,1340.4,0.04113052]
[1673280200508,9.3039,1340.5,1340.4,0.04113052]
[1673280200835,1.844,1340.5,1340.4,0.04113052]
[1673280201042,1.778,1340.5,1340.4,0.04113052]
[1673280201469,15.11214694,1340.6,1340.4,0.04113052]
[1673280201656,2.29404995,1340.6,1340.4,0.04113052]
[1673280202008,5.12567611,1340.7,1340.4,14.04113052]
[1673280202009,0.6256,1340.7,1340.4,14.04113052]
[1673280202201,3.24350756,1340.8,1340.4,14.10713052]
[1673280202202,3.80310756,1340.8,1340.4,14.10713052]
[1673280202442,1.57719849,1340.8,1340.4,14.10713052]
[1673280202632,1.57719849,1340.8,1340.5,3.79766064]
[1673280202801,1.01759849,1340.8,1340.5,11.25716064]
[1673280203171,1.01759849,1340.8,1340.5,3.86366064]
[1673280203487,3.24350756,1340.8,1340.4,14.10713052]
[1673280203803,0.5596,1340.7,1340.4,14.10713052]
[1673280203960,1.64319849,1340.8,1340.4,25.36524116]
[1673280204169,1.57719849,1340.8,1340.4,32.82569116]
[1673280204381,1.57719849,1340.8,1340.4,40.28614116]
[1673280204699,1.01759849,1340.8,1340.4,40.28614116]
[1673280205135,1.01759849,1340.8,1340.5,14.75744064]
[1673280205378,1.01759849,1340.8,1340.5,14.82344064]
[1673280205898,1.01759849,1340.8,1340.5,11.32340064]
[1673280206110,8.47587849,1340.8,1340.5,7.52587]
[1673280206267,8.54187849,1340.8,1340.5,7.52587]
[1673280206483,10.49822674,1340.8,1340.5,0.066]
[1673280206725,10.49822674,1340.8,1340.5,7.45984]
[1673280206726,1.08359849,1340.8,1340.5,7.45984]
[1673280207009,15.93413849,1340.8,1340.5,0.066]
[1673280207218,15.93413849,1340.8,1340.5,3.79766064]
[1673280207219,1.08359849,1340.8,1340.5,3.79766064]
[1673280207447,1.01759849,1340.8,1340.5,18.71734064]
[1673280207791,15.93411849,1340.8,1340.5,3.86366064]
[1673280208005,16.00011849,1340.8,1340.5,7.29766064]
[1673280208180,1.08359849,1340.8,1340.5,18.78337064]
[1673280208380,8.47594849,1340.8,1340.5,18.78337064]
[1673280208594,1.08359849,1340.8,1340.6,14.0]
[1673280208806,1.01759849,1340.8,1340.6,21.52499]
[1673280209018,1.01759849,1340.8,1340.6,28.98433]
[1673280209222,1.01759849,1340.8,1340.7,3.79766064]
[1673280209432,1e-08,1340.8,1340.7,32.62812646]
[1673280209646,1e-08,1340.8,1340.7,28.24803064]
[1673280209914,1e-08,1340.8,1340.7,26.47003064]
[1673280210609,1e-08,1340.8,1340.7,0.066]
[1673280210957,1e-08,1340.8,1340.6,21.52522]
[1673280211121,1e-08,1340.8,1340.6,40.24156064]
[1673280211747,1e-08,1340.8,1340.7,3.79766064]
[1673280212170,1e-08,1340.8,1340.7,26.17403064]
[1673280212414,1e-08,1340.8,1340.7,26.47003064]
[1673280212791,1e-08,1340.8,1340.7,11.55245064]
[1673280213020,1e-08,1340.8,1340.7,26.47003064]
[1673280213270,1e-08,1340.8,1340.7,19.01124064]
[1673280213425,1e-08,1340.8,1340.7,14.98358]
[1673280213638,1e-08,1340.8,1340.7,7.52479]
[1673280213859,1e-08,1340.8,1340.7,14.98358]
[1673280214281,1e-08,1340.8,1340.7,26.24003064]
[1673280214961,1e-08,1340.8,1340.7,26.47003064]
[1673280215276,1e-08,1340.8,1340.7,19.01124064]
[1673280215891,1e-08,1340.8,1340.7,30.01124064]
[1673280216080,7.45823001,1340.8,1340.7,3.066]
[1673280216295,0.06600001,1340.8,1340.7,3.0]
[1673280216509,1e-08,1340.8,1340.7,3.0]
[1673280217117,22.37469001,1340.8,1340.6,22.066]
[1673280217363,22.44069001,1340.8,1340.6,22.066]
[1673280217572,17.06899863,1340.8,1340.6,22.066]
[1673280217906,0.052,1340.8,1340.7,7.29766064]
[1673280218062,0.68432,1341.1,1340.8,5.40851855]
[1673280218279,0.68432,1341.1,1341.0,22.0]
[1673280218594,8.57998518,1341.4,1341.1,3.5]
[1673280218595,0.066,1341.4,1341.1,3.5]
[1673280218824,2.96772167,1341.5,1341.1,3.5]
[1673280218825,2.96772167,1341.5,1341.3,21.45534]
[1673280219029,2.96772167,1341.5,1341.3,25.31900064]
[1673280219030,5.75579778,1341.5,1341.3,25.31900064]
[1673280219238,5.82179778,1341.5,1341.3,32.77445064]
[1673280219448,5.82179778,1341.5,1341.4,3.79766064]
[1673280219692,0.8078126,1341.5,1341.4,3.79766064]
[1673280219865,0.052,1341.5,1341.4,18.70744064]
[1673280220077,0.052,1341.5,1341.4,11.54855064]
[1673280220304,0.052,1341.5,1341.4,27.00344064]
[1673280220521,0.052,1341.5,1341.4,27.56274064]
[1673280220852,2.85407611,1341.8,1341.4,27.00344064]
[1673280221067,2.78807611,1341.8,1341.7,14.0]
[1673280221220,2.78807611,1341.8,1341.7,14.066]
[1673280221583,3.46219275,1341.9,1341.7,14.066]
[1673280221773,6.18426886,1341.9,1341.7,14.066]
[1673280221952,6.24026886,1341.9,1341.7,14.066]
[1673280222627,3.45219275,1341.9,1341.7,14.066]
[1673280222806,3.39619275,1341.9,1341.7,14.066]
[1673280223017,11.89946372,1341.9,1341.7,14.066]
[1673280223232,7.29141983,1341.9,1341.7,14.066]
[1673280223758,6.24026886,1341.9,1341.7,14.066]
[1673280224391,13.69241886,1341.9,1341.7,14.066]
[1673280224604,10.90434275,1341.9,1341.7,0.066]
[1673280224819,3.5,1341.7,1341.5,14.066]
[1673280225481,18.40672,1341.7,1341.5,0.066]
[1673280225815,19.72220809,1341.7,1341.4,14.066]
[1673280226003,8.01299,1341.6,1341.4,14.066]
[1673280226187,8.06899,1341.6,1341.4,14.066]
[1673280226393,10.95434,1341.5,1341.4,14.066]
[1673280226607,25.91902,1341.5,1341.4,14.066]
[1673280226827,3.5,1341.4,1341.2,14.0]
[1673280227036,7.45545,1341.3,1341.2,14.066]
[1673280227246,3.171,1341.3,1341.2,14.066]
[1673280227482,3.105,1341.3,1341.2,14.066]
[1673280227694,0.066,1341.4,1341.2,14.066]
[1673280227918,3.213,1341.5,1341.2,14.066]
[1673280228085,6.08319577,1341.5,1341.2,14.066]
[1673280228291,17.10359577,1341.5,1341.2,14.066]
[1673280228507,24.55799577,1341.5,1341.2,14.066]
[1673280228811,3.5,1341.4,1341.2,14.066]
[1673280229094,7.41646036,1341.3,1341.2,14.066]
[1673280229273,25.98258467,1341.3,1341.0,14.0]
[1673280229465,30.33754531,1341.3,1341.2,0.064]
[1673280229805,30.33754531,1341.3,1340.8,15.90851855]
[1673280229806,22.37001,1341.1,1340.8,1.97451855]
[1673280230024,10.95767,1340.9,1340.6,14.054]
[1673280230330,0.066,1340.9,1340.6,14.066]
[1673280230498,9.84615088,1341.0,1340.6,14.066]
[1673280230710,10.51869903,1341.0,1340.6,14.066]
[1673280231273,17.97626903,1341.0,1340.6,14.066]
[1673280231857,10.51869903,1341.0,1340.6,14.066]
[1673280232122,17.97581903,1341.0,1340.6,14.066]
[1673280232335,23.55147967,1341.0,1340.6,14.066]
[1673280232485,2.35514797,1340.9,1340.6,14.066]
[1673280232696,22.37469,1340.8,1340.6,14.066]
[1673280232937,14.98246,1340.8,1340.6,14.066]
[1673280233147,7.52423,1340.8,1340.6,14.066]
[1673280233579,14.98246,1340.8,1340.6,14.066]
[1673280234076,22.44069,1340.8,1340.6,14.066]
[1673280234426,25.780576,1340.8,1340.6,14.066]
[1673280236420,25.78271688,1340.8,1340.6,14.066]
[1673280236639,25.78271688,1340.8,1340.6,0.066]
[1673280236798,24.14037,1340.7,1340.4,14.066]
[1673280237008,24.20637,1340.7,1340.4,14.066]
[1673280237250,27.70703269,1340.7,1340.4,14.066]
[1673280237883,25.94303269,1340.7,1340.4,14.066]
[1673280238098,27.70517357,1340.7,1340.4,14.066]
[1673280238269,27.70517357,1340.7,1340.4,14.064]
[1673280238478,27.70517357,1340.7,1340.4,14.066]
[1673280238720,1.776,1340.5,1340.4,14.066]
[1673280238900,24.15784088,1340.5,1340.4,14.066]
[1673280239106,24.22384088,1340.5,1340.4,14.066]
[1673280239364,16.76394088,1340.5,1340.4,0.066]
[1673280239526,20.56160152,1340.5,1340.1,44.406]
[1673280239755,18.75546015,1340.4,1340.1,14.066]
[1673280240081,26.28228015,1340.4,1340.1,14.066]
[1673280240940,1.761,1340.3,1340.1,14.066]
[1673280241132,9.22219,1340.3,1340.1,14.066]
[1673280241312,9.28819,1340.3,1340.1,14.066]
[1673280242205,9.28819,1340.3,1340.1,22.066]
[1673280242206,11.91475501,1340.3,1340.1,22.066]
[1673280242519,24.21057,1340.3,1340.1,22.066]
[1673280242943,1.769,1340.2,1340.1,14.066]
[1673280243103,1.769,1340.2,1340.1,0.066]
[1673280243306,24.15371,1340.2,1340.0,0.0334438]
[1673280243521,1.778,1340.1,1340.0,0.0334438]
[1673280243732,26.96699706,1340.1,1340.0,0.0334438]
[1673280243973,27.03299706,1340.1,1340.0,0.0334438]
[1673280244194,30.8306577,1340.1,1340.0,0.0334438]
[1673280244436,32.6086577,1340.1,1340.0,0.0334438]
[1673280245169,12.10875706,1340.1,1340.0,0.0334438]
[1673280245332,3.171,1340.1,1340.0,0.0334438]
[1673280245554,3.105,1340.1,1340.0,0.0334438]
[1673280245963,2.4038,1340.2,1340.0,0.0334438]
[1673280246179,0.5598,1340.2,1340.0,0.0334438]
[1673280246823,8.02142,1340.2,1340.0,0.0334438]
[1673280247032,10.56473709,1340.2,1340.0,0.0334438]
[1673280247694,18.02635709,1340.2,1340.0,0.0334438]
[1673280248015,25.48797709,1340.2,1340.0,0.0334438]
[1673280248169,1.778,1340.1,1340.0,0.0334438]
[1673280248593,9.24012,1340.1,1340.0,0.0334438]
[1673280248803,26.2110548,1340.1,1340.0,0.0334438]
[1673280249549,35.26971544,1340.1,1340.0,4.38e-05]
[1673280250110,35.82951544,1340.1,1340.0,4.38e-05]
[1673280251794,18.42536,1340.0,1339.9,21.69375381]
[1673280251961,33.86460064,1340.0,1339.9,21.69375381]
[1673280252169,40.17803508,1340.0,1339.9,21.69375381]
[1673280252636,42.4216779,1340.0,1339.9,21.69375381]
[1673280253431,42.4216779,1340.0,1339.5,0.77737414]
[1673280253686,24.17273,1339.6,1339.5,0.77737414]
[1673280253918,28.70261516,1339.6,1339.5,0.77737414]
[1673280254168,28.70261516,1339.6,1339.4,0.03150698]
[1673280254169,35.87945568,1339.6,1339.4,0.03150698]
[1673280254483,4.29766064,1339.5,1339.4,0.03150698]
[1673280254695,22.76560064,1339.5,1339.4,0.03150698]
[1673280254919,22.78160064,1339.5,1339.3,0.01706852]
[1673280255190,22.78160064,1339.5,1339.2,0.03556154]
[1673280255191,18.91990152,1339.4,1339.2,0.03556154]
[1673280255324,18.91990152,1339.4,1339.1,0.03556154]
[1673280255325,37.39398064,1339.3,1339.1,0.03556154]
[1673280255535,18.73194064,1339.2,1339.1,0.03556154]
[1673280255911,39.6436387,1339.2,1338.9,3.70574319]
[1673280256208,33.398,1339.0,1338.9,3.70574319]
[1673280256425,39.65397511,1339.0,1338.9,3.70574319]
[1673280256598,39.65397511,1339.0,1338.9,3.19e-06]
[1673280256599,43.21427511,1339.0,1338.9,3.19e-06]
[1673280256792,57.75241599,1339.0,1338.8,2.9e-06]
[1673280257006,57.75241599,1339.0,1338.4,0.066]
[1673280257007,15.87396064,1338.9,1338.4,0.066]
[1673280257263,1.778,1338.6,1338.2,30.21098972]
[1673280257436,11.33529152,1338.8,1338.6,1.18809561]
[1673280257633,2.89752915,1338.7,1338.6,1.18809561]
[1673280257851,1.764,1338.7,1338.6,1.18809561]
[1673280258987,9.23393,1338.7,1338.6,1.18809561]
[1673280259260,1.83,1338.7,1338.6,1.18809561]
[1673280259472,9.23393,1338.7,1338.6,1.18809561]
[1673280259639,16.76986,1338.7,1338.6,1.18809561]
[1673280259848,19.57376615,1338.7,1338.6,1.18809561]
[1673280260072,30.84135679,1338.7,1338.6,1.18809561]
[1673280260478,23.37142679,1338.7,1338.6,1.18809561]
[1673280260894,31.40175679,1338.7,1338.6,1.18809561]
[1673280261634,34.90175679,1338.7,1338.6,1.18809561]
[1673280261844,34.90175679,1338.7,1338.6,5.61e-06]
[1673280262068,22.41348,1338.5,1338.2,0.04199028]
[1673280262296,1.778,1338.3,1338.2,0.04199028]
[1673280262516,16.78416864,1338.5,1338.4,2.17723056]
[1673280262759,5.15584801,1338.5,1338.4,2.17723056]
[1673280262948,2.35400001,1338.5,1338.4,2.17723056]
[1673280263266,9.75904001,1338.5,1338.4,2.17723056]
[1673280263416,18.39870065,1338.5,1338.4,2.17723056]
[1673280263627,30.90128065,1338.5,1338.4,2.17723056]
[1673280263838,34.40128065,1338.5,1338.4,2.17723056]
[1673280264093,38.76456272,1338.5,1338.4,2.17723056]
[1673280264677,31.29352272,1338.5,1338.4,2.17723056]
[1673280264886,31.29352272,1338.5,1338.4,9.64883056]
[1673280264887,0.066,1338.5,1338.4,9.64883056]
[1673280265145,8.3644,1338.9,1338.4,17.18643056]
[1673280265461,7.29766064,1338.8,1338.4,17.18643056]
[1673280265682,4.42406064,1338.8,1338.4,17.18643056]
[1673280265988,0.6263,1338.9,1338.4,17.18643056]
[1673280266199,8.48334725,1338.9,1338.5,2.5]
[1673280266357,0.066,1338.9,1338.6,16.71874]
[1673280266563,0.066,1339.2,1338.6,16.78474]
[1673280266777,4.57693772,1339.2,1338.6,21.33374852]
[1673280267035,3.9082,1339.3,1338.8,22.0]
[1673280267248,0.39082,1339.2,1338.9,7.46876]
[1673280267460,0.39082,1339.2,1338.9,7.53437]
[1673280267621,0.56234088,1339.3,1338.9,7.53437]
[1673280267830,0.00214088,1339.3,1338.9,15.00318]
[1673280268144,0.6261,1339.5,1339.2,14.93406]
[1673280268507,0.066,1339.7,1339.3,10.96634]
[1673280268667,3.79766064,1339.7,1339.3,7.53234]
[1673280268876,0.066,1339.8,1339.3,28.99892]
[1673280269112,7.46332,1339.9,1339.3,23.85454]
[1673280269345,7.29766064,1339.8,1339.3,23.85454]
[1673280269563,14.82763064,1339.8,1339.3,14.6262]
[1673280269890,3.5,1339.6,1339.3,0.6262]
[1673280270037,3.5,1339.6,1339.2,23.55981]
[1673280270038,4.97620306,1339.6,1339.2,23.55981]
[1673280270245,3.5,1339.6,1339.3,7.46658]
[1673280270454,3.5,1339.6,1339.3,0.066]
[1673280270663,3.5,1339.6,1339.2,8.0928]
[1673280270870,3.5,1339.6,1339.2,0.002]
[1673280270871,1.76,1339.4,1339.2,0.002]
[1673280271135,26.19740064,1339.3,1339.2,0.06]
[1673280271446,29.4433407,1339.3,1338.7,14.066]
[1673280271664,14.93575,1339.1,1338.7,14.066]
[1673280271824,3.86366064,1339.1,1338.7,0.066]
[1673280272025,3.158,1338.9,1338.5,14.0735]
[1673280272235,3.158,1338.9,1338.5,4.1265]
[1673280272452,0.00214088,1338.8,1338.5,3.5]
[1673280272918,1.778,1338.6,1338.4,2.24323056]
[1673280273131,21.88858152,1338.8,1338.4,2.17723056]
[1673280273132,0.00214088,1338.5,1338.4,2.17723056]
[1673280273343,4.64426606,1338.9,1338.5,10.97695561]
[1673280273507,3.5603,1338.9,1338.5,14.82810858]
[1673280273716,0.422,1338.8,1338.5,10.29620032]
[1673280274132,0.422,1338.8,1338.6,14.0]
[1673280274347,0.422,1338.8,1338.7,7.46993]
[1673280274557,0.422,1338.8,1338.7,7.53593]
[1673280275241,0.422,1338.8,1338.7,7.43593]
[1673280275412,0.422,1338.8,1338.7,0.066]
[1673280275608,0.422,1338.8,1338.6,29.00605]
[1673280275827,7.89137,1338.8,1338.6,0.066]
[1673280276063,2.320137,1338.7,1338.5,0.06924472]
[1673280276393,1.82175188,1338.8,1338.5,3.56924472]
[1673280276620,0.00214088,1338.8,1338.5,0.06924472]
[1673280277428,0.00214088,1338.8,1338.6,0.26277552]
[1673280277970,0.066,1338.9,1338.6,15.20329552]
[1673280278130,12.91564,1339.0,1338.6,0.32877552]
[1673280278341,1.774,1338.7,1338.6,0.26277552]
[1673280279285,9.24393,1338.7,1338.6,0.26277552]
[1673280279495,3.171,1338.7,1338.6,0.26277552]
[1673280279757,3.105,1338.7,1338.6,0.26277552]
[1673280280596,10.57493,1338.7,1338.6,0.26277552]
[1673280280788,4.41270709,1338.7,1338.6,0.26277552]
[1673280280966,19.81286,1338.7,1338.6,0.26277552]
[1673280281174,27.34879,1338.7,1338.6,0.26277552]
[1673280281386,31.14645064,1338.7,1338.6,0.26277552]
[1673280281683,31.14645064,1338.7,1338.4,2.17723056]
[1673280281684,39.23585064,1338.7,1338.4,2.17723056]
[1673280281864,1.76,1338.5,1338.4,2.17723056]
[1673280282050,27.97078064,1338.5,1338.4,2.17723056]
[1673280282258,28.59728064,1338.5,1338.4,2.17723056]
[1673280282664,6.18416064,1338.5,1338.4,2.17723056]
[1673280283067,13.65520064,1338.5,1338.4,2.17723056]
[1673280283278,7.40689421,1338.5,1338.4,2.17723056]
[1673280283520,3.60923357,1338.5,1338.4,2.17723056]
[1673280283741,0.5605,1338.5,1338.4,2.17723056]
[1673280283909,2.1345,1338.5,1338.4,2.17723056]
[1673280285021,0.5605,1338.5,1338.4,2.17723056]
[1673280286222,0.5605,1338.6,1338.4,2.17723056]
[1673280286482,22.9724,1338.6,1338.4,2.17723056]
[1673280286805,30.28602064,1338.5,1338.4,2.17723056]
[1673280286978,30.35202064,1338.5,1338.4,2.17723056]
[1673280287322,30.35416152,1338.5,1338.4,2.17723056]
[1673280287637,4.14338088,1338.5,1338.4,2.17723056]
[1673280287857,0.00214088,1338.5,1338.4,2.17723056]
[1673280288220,29.03192152,1338.5,1338.4,2.17723056]
[1673280288430,30.87592152,1338.5,1338.4,2.17723056]
[1673280288804,0.066,1338.5,1338.4,2.17723056]
[1673280288989,0.066,1338.6,1338.4,24.59203056]
[1673280289261,0.066,1338.9,1338.5,0.18054858]
[1673280289470,11.0855,1339.1,1338.5,12.14317394]
[1673280289471,18.55928,1339.1,1338.5,12.14317394]
[1673280289651,13.12196864,1339.0,1338.5,12.20917394]
[1673280290007,13.12196864,1339.0,1338.5,19.68021394]
[1673280290008,6.27988864,1339.0,1338.5,19.68021394]
[1673280290401,17.25029952,1339.0,1338.5,7.71727858]
[1673280290941,19.02429952,1339.0,1338.5,7.71727858]
[1673280291342,26.49256952,1339.0,1338.5,7.71727858]
[1673280291587,2.64925695,1338.9,1338.5,0.24654858]
[1673280291796,10.11816695,1338.9,1338.5,0.18054858]
[1673280292112,25.12188695,1338.9,1338.5,0.18054858]
[1673280293911,24.00953356,1338.9,1338.5,0.18054858]
[1673280294056,9.07171356,1338.9,1338.5,0.18054858]
[1673280294268,0.066,1338.9,1338.5,22.59366858]
[1673280294640,11.66067888,1339.0,1338.5,22.65966858]
[1673280294813,3.309,1338.9,1338.5,22.65966858]
[1673280295755,8.05602952,1339.0,1338.5,29.92093717]
[1673280295756,0.62844088,1339.0,1338.5,29.92093717]
[1673280295960,0.56244088,1339.0,1338.5,29.92093717]
[1673280296403,0.56244088,1339.0,1338.6,3.5]
[1673280296589,0.56244088,1339.0,1338.7,22.40946]
[1673280296818,0.56244088,1339.0,1338.7,22.47546]
[1673280298302,0.56244088,1339.0,1338.7,15.00564]
[1673280298625,8.03076088,1339.0,1338.7,7.53582]
[1673280298840,8.09676088,1339.0,1338.7,7.53582]
[1673280298992,8.09676088,1339.0,1338.7,15.00575]
[1673280299334,8.09676088,1339.0,1338.7,22.47568]
[1673280299335,0.066,1339.0,1338.7,22.47568]
[1673280299547,14.93651,1339.0,1338.7,0.066]
[1673280299776,14.93651,1339.0,1338.6,21.53629]
[1673280299777,7.53425,1339.0,1338.6,21.53629]
[1673280299943,15.0025,1339.0,1338.6,36.47659]
[1673280300301,7.53425,1339.0,1338.6,22.47659]
[1673280300537,1.778,1338.9,1338.6,0.066]
[1673280300732,9.24337,1338.8,1338.5,0.18054858]
[1673280300885,3.51125,1338.8,1338.5,0.18054858]
[1673280301247,10.9148,1338.8,1338.5,0.18054858]
[1673280301407,18.45035,1338.8,1338.5,0.18054858]
[1673280301622,10.9808,1338.8,1338.5,0.18054858]
[1673280301835,9.2068,1338.8,1338.5,0.18054858]
[1673280302097,2.69168,1338.7,1338.5,0.18054858]
[1673280302312,14.94098,1338.6,1338.5,0.18054858]
[1673280302613,18.80464064,1338.6,1338.5,0.18054858]
[1673280302831,13.11029152,1338.6,1338.5,0.18054858]
[1673280303195,0.06814088,1338.6,1338.5,0.18054858]
[1673280303451,2.68068,1338.7,1338.5,0.18054858]
[1673280303630,1.76,1338.7,1338.5,0.18054858]
[1673280303836,9.23001,1338.7,1338.5,0.18054858]
[1673280304047,16.76602,1338.7,1338.5,0.18054858]
[1673280304491,24.23603,1338.7,1338.5,0.18054858]
[1673280304909,28.03369064,1338.7,1338.5,0.18054858]
[1673280305080,26.99283906,1338.6,1338.5,0.18054858]
[1673280305295,30.8564997,1338.6,1338.5,0.18054858]
[1673280305620,19.58834906,1338.6,1338.5,0.18054858]
[1673280305860,27.05883906,1338.6,1338.5,0.18054858]
[1673280306040,19.58834906,1338.6,1338.5,0.18054858]
[1673280306243,12.11785906,1338.6,1338.5,0.18054858]
[1673280306707,10.33985906,1338.6,1338.5,0.18054858]
[1673280307092,17.81034906,1338.6,1338.5,0.18054858]
[1673280307338,3.5,1338.5,1338.4,2.17723056]
[1673280307549,30.33031555,1338.5,1338.4,2.17723056]
[1673280307851,19.12761491,1338.5,1338.4,2.17723056]
[1673280308085,2.40753491,1338.5,1338.4,2.17723056]
[1673280308236,2.34153491,1338.5,1338.4,2.17723056]
[1673280312181,1.78103491,1338.5,1338.4,2.17723056]
[1673280313683,16.72311491,1338.5,1338.4,2.17723056]
[1673280313911,16.78911491,1338.5,1338.4,2.17723056]
[1673280314474,24.26015491,1338.5,1338.4,2.17723056]
[1673280315555,25.3632122,1338.5,1338.4,2.17723056]
[1673280316004,16.78911491,1338.5,1338.4,2.17723056]
[1673280316366,24.26015491,1338.5,1338.4,2.17723056]
[1673280316736,27.1242122,1338.5,1338.4,2.17723056]
[1673280317350,18.55011491,1338.5,1338.4,2.17723056]
[1673280317552,19.6531722,1338.5,1338.4,2.17723056]
[1673280317786,27.1242122,1338.5,1338.4,2.17723056]
[1673280318097,33.6975335,1338.5,1338.4,2.17723056]
[1673280318310,32.59585577,1338.5,1338.4,2.17723056]
[1673280318467,31.47902664,1338.5,1338.4,2.17723056]
[1673280318688,32.59585621,1338.5,1338.4,2.17723056]
[1673280318930,36.09586145,1338.5,1338.4,2.17723056]
[1673280319531,36.09578614,1338.5,1338.4,2.17723056]
[1673280319746,34.97902664,1338.5,1338.4,2.17723056]
[1673280319988,37.97902664,1338.5,1338.4,2.17723056]
[1673280320304,39.09550665,1338.5,1338.4,2.17723056]
[1673280321539,37.97902664,1338.5,1338.4,2.17723056]
[1673280321960,39.0954363,1338.5,1338.4,2.17723056]
[1673280322184,39.09521098,1338.5,1338.4,2.17723056]
[1673280323255,37.97902664,1338.5,1338.4,2.17723056]
[1673280323557,39.65557491,1338.5,1338.4,2.17723056]
[1673280326289,38.53952664,1338.5,1338.4,2.17723056]
[1673280326502,39.85417959,1338.5,1338.4,2.17723056]
[1673280326669,41.52788959,1338.5,1338.4,2.17723056]
[1673280326929,39.85417959,1338.5,1338.4,2.17723056]
[1673280327085,41.52746592,1338.5,1338.4,2.17723056]
[1673280328503,39.30895906,1338.5,1338.4,2.17723056]
[1673280328661,28.33791906,1338.5,1338.4,2.17723056]
[1673280328873,19.55253428,1338.5,1338.4,2.17723056]
[1673280329138,34.49357428,1338.5,1338.4,2.17723056]
[1673280329721,41.96461428,1338.5,1338.4,2.17723056]
[1673280330470,43.63790061,1338.5,1338.4,2.17723056]
[1673280330976,43.63790061,1338.5,1338.4,2.1746788]